[Event "NJSK 2022 Jeugd C"]
[Site "Almelo, Netherlands"]
[Date "2022.05.01"]
[Round "1.12"]
[White "Bosma, Jonathan"]
[Black "Ponomarev, Ivan"]
[Result "0-1"]
[TimeControl "90min + 30sec/move"]
[WhiteElo "884"]
[BlackElo "1744"]

1. d4 {[%clk 01:30:58]} {[%emt 00:00:02]} Nf6 {[%clk 01:30:55]} {[%emt
00:00:06]} 2. c4 {[%clk 01:31:21]} {[%emt 00:00:08]} e6 {[%clk 01:31:21]}
{[%emt 00:00:03]} 3. Nc3 {[%clk 01:31:45]} {[%emt 00:00:06]} Bb4 {[%clk
01:31:41]} {[%emt 00:00:10]} 4. Nf3 {[%clk 01:32:02]} {[%emt 00:00:13]} O-O
{[%clk 01:29:46]} {[%emt 00:02:25]} 5. e3 {[%clk 01:32:25]} {[%emt 00:00:07]}
d5 {[%clk 01:27:42]} {[%emt 00:02:34]} 6. Bd3 {[%clk 01:32:17]} {[%emt
00:00:39]} dxc4 {[%clk 01:25:24]} {[%emt 00:02:48]} 7. Bxc4 {[%clk 01:31:56]}
{[%emt 00:00:50]} b6 {[%clk 01:24:36]} {[%emt 00:01:18]} 8. a3 {[%clk
01:31:19]} {[%emt 00:01:07]} Bxc3+ {[%clk 01:23:40]} {[%emt 00:01:27]} 9. bxc3
{[%clk 01:31:36]} {[%emt 00:00:12]} Bb7 {[%clk 01:22:29]} {[%emt 00:01:41]} 10.
O-O {[%clk 01:30:14]} {[%emt 00:01:52]} Nbd7 {[%clk 01:18:50]} {[%emt
00:04:09]} 11. Qc2 {[%clk 01:27:37]} {[%emt 00:03:07]} c5 {[%clk 01:12:54]}
{[%emt 00:06:26]} 12. Nd2 {[%clk 01:26:08]} {[%emt 00:01:59]} Rc8 {[%clk
01:02:18]} {[%emt 00:11:07]} 13. a4 {[%clk 01:20:32]} {[%emt 00:06:06]} Qc7
{[%clk 00:57:35]} {[%emt 00:05:11]} 14. h3 {[%clk 01:15:33]} {[%emt 00:05:29]}
cxd4 {[%clk 00:49:09]} {[%emt 00:08:56]} 15. exd4 {[%clk 01:14:25]} {[%emt
00:01:39]} e5 {[%clk 00:46:43]} {[%emt 00:02:56]} 16. Qd3 {[%clk 01:09:15]}
{[%emt 00:05:40]} e4 {[%clk 00:43:02]} {[%emt 00:04:11]} 17. Qg3 {[%clk
01:08:54]} {[%emt 00:00:33]} Qxg3 {[%clk 00:41:20]} {[%emt 00:02:30]} 18. fxg3
{[%clk 01:08:53]} {[%emt 00:00:31]} e3 {[%clk 00:41:28]} {[%emt 00:00:22]} 19.
Ne4 {[%clk 00:59:22]} {[%emt 00:10:01]} Bxe4 {[%clk 00:41:18]} {[%emt
00:00:40]} 20. Bxe3 {[%clk 00:58:55]} {[%emt 00:00:56]} Rxc4 {[%clk 00:41:13]}
{[%emt 00:00:36]} 21. Ra3 {[%clk 00:58:10]} {[%emt 00:01:15]} Rfc8 {[%clk
00:39:34]} {[%emt 00:02:09]} 22. Bd2 {[%clk 00:56:51]} {[%emt 00:01:49]} Nd5
{[%clk 00:38:15]} {[%emt 00:01:48]} 23. Re1 {[%clk 00:56:40]} {[%emt 00:00:42]}
f5 {[%clk 00:36:11]} {[%emt 00:02:34]} 24. g4 {[%clk 00:52:59]} {[%emt
00:04:09]} Nxc3 {[%clk 00:29:04]} {[%emt 00:25:28]} 25. gxf5 {[%clk 00:51:46]}
{[%emt 00:01:42]} Nb1 {[%clk 00:26:49]} {[%emt 00:02:45]} 26. Ra2 {[%clk
00:50:49]} {[%emt 00:01:26]} Nxd2 {[%clk 00:26:26]} {[%emt 00:00:54]} 27. Rxd2
{[%clk 00:51:17]} {[%emt 00:00:02]} Rc1 {[%clk 00:26:10]} {[%emt 00:00:46]} 28.
Rde2 {[%clk 00:50:47]} {[%emt 00:00:51]} Rxe1+ {[%clk 00:26:05]} {[%emt
00:00:44]} 29. Rxe1 {[%clk 00:50:58]} {[%emt 00:00:11]} Nf6 {[%clk 00:25:54]}
{[%emt 00:00:49]} 30. g4 {[%clk 00:50:55]} {[%emt 00:00:32]} h6 {[%clk
00:25:54]} {[%emt 00:00:30]} 31. h4 {[%clk 00:50:15]} {[%emt 00:01:06]} Rc2
{[%clk 00:25:30]} {[%emt 00:00:58]} 32. Kf1 {[%clk 00:49:32]} {[%emt 00:01:13]}
Bd3+ {[%clk 00:20:01]} {[%emt 00:05:59]} 33. Kg1 {[%clk 00:49:40]} {[%emt
00:00:22]} Nxg4 {[%clk 00:19:04]} {[%emt 00:01:28]} 34. d5 {[%clk 00:49:33]}
{[%emt 00:00:36]} Bxf5 {[%clk 00:18:47]} {[%emt 00:00:47]} 35. d6 {[%clk
00:49:27]} {[%emt 00:00:29]} Rd2 {[%clk 00:18:25]} {[%emt 00:01:00]} 36. Re8+
{[%clk 00:49:33]} {[%emt 00:00:24]} Kh7 {[%clk 00:17:57]} {[%emt 00:00:58]} 37.
d7 {[%clk 00:47:17]} {[%emt 00:02:46]} Rxd7 {[%clk 00:17:51]} {[%emt 00:00:36]}
38. Kg2 {[%clk 00:47:21]} {[%emt 00:00:25]} Nf6 {[%clk 00:18:01]} {[%emt
00:00:20]} 39. Re3 {[%clk 00:44:34]} {[%emt 00:02:53]} Rd4 {[%clk 00:18:12]}
{[%emt 00:00:44]} 40. Ra3 {[%clk 00:41:59]} {[%emt 00:03:03]} Rxh4 {[%clk
00:18:27]} {[%emt 00:00:17]} 41. a5 {[%clk 00:41:53]} {[%emt 00:00:36]} Rb4
{[%clk 00:18:20]} {[%emt 00:00:36]} 42. axb6 {[%clk 00:35:59]} {[%emt
00:06:25]} axb6 {[%clk 00:18:45]} {[%emt 00:00:05]} 43. Kg3 {[%clk 00:35:19]}
{[%emt 00:01:00]} b5 {[%clk 00:19:01]} {[%emt 00:00:23]} 44. Ra5 {[%clk
00:35:36]} {[%emt 00:00:09]} Rb1 {[%clk 00:19:14]} {[%emt 00:00:21]} 45. Kf2
{[%clk 00:35:41]} {[%emt 00:00:25]} Bg6 {[%clk 00:19:30]} {[%emt 00:00:14]} 46.
Ke3 {[%clk 00:35:14]} {[%emt 00:00:49]} b4 {[%clk 00:19:55]} {[%emt 00:00:14]}
47. Kd2 {[%clk 00:35:11]} {[%emt 00:00:33]} b3 {[%clk 00:20:17]} {[%emt
00:00:08]} 48. Rb5 {[%clk 00:35:36]} {[%emt 00:00:05]} b2 {[%clk 00:20:34]}
{[%emt 00:00:13]} 49. Rb6 {[%clk 00:32:49]} {[%emt 00:02:57]} Rh1 {[%clk
00:20:57]} {[%emt 00:00:26]} 50. Rxb2 {[%clk 00:32:13]} {[%emt 00:01:06]} Rh2+
{[%clk 00:21:23]} {[%emt 00:00:05]} 51. Kc3 {[%clk 00:32:34]} {[%emt 00:00:08]}
Rxb2 {[%clk 00:21:47]} {[%emt 00:00:07]} 52. Kxb2 {[%clk 00:32:56]} {[%emt
00:00:08]} h5 {[%clk 00:22:14]} {[%emt 00:00:03]} 53. Kc1 {[%clk 00:33:12]}
{[%emt 00:00:14]} h4 {[%clk 00:22:40]} {[%emt 00:00:03]} 54. Kd1 {[%clk
00:33:35]} {[%emt 00:00:06]} h3 {[%clk 00:23:08]} {[%emt 00:00:04]} 55. Ke2
{[%clk 00:33:16]} {[%emt 00:00:48]} h2 {[%clk 00:23:34]} {[%emt 00:00:04]} 56.
Kf2 {[%clk 00:33:29]} {[%emt 00:00:17]} h1=Q {[%clk 00:23:57]} {[%emt
00:00:07]} 57. Kg3 {[%clk 00:33:32]} {[%emt 00:00:26]} Qe4 {[%clk 00:24:20]}
{[%emt 00:00:08]} 58. Kh3 {[%clk 00:33:04]} {[%emt 00:00:54]} Qg4+ {[%clk
00:24:44]} {[%emt 00:00:11]} 59. Kh2 {[%clk 00:33:24]} {[%emt 00:00:10]} Kh6
{[%clk 00:25:04]} {[%emt 00:00:10]} 60. Kh1 {[%clk 00:33:42]} {[%emt 00:00:10]}
Be4+ {[%clk 00:25:31]} {[%emt 00:00:04]} 61. Kh2 {[%clk 00:33:54]} {[%emt
00:00:18]} Qg2# {[%clk 00:25:58]} {[%emt 00:00:04]} 0-1

[Event "NJSK 2022 Jeugd C"]
[Site "Almelo, Netherlands"]
[Date "2022.05.02"]
[Round "2.1"]
[White "Van Arendonk, Polle"]
[Black "Smeets, Kobe"]
[Result "1/2-1/2"]
[TimeControl "90min + 30sec/move"]
[WhiteElo "1784"]
[BlackElo "1984"]

1. e4 {[%clk 01:30:58]} {[%emt 00:00:03]} c5 {[%clk 01:30:56]} {[%emt
00:00:04]} 2. Nf3 {[%clk 01:31:23]} {[%emt 00:00:05]} e6 {[%clk 01:31:23]}
{[%emt 00:00:03]} 3. d4 {[%clk 01:31:49]} {[%emt 00:00:04]} cxd4 {[%clk
01:31:49]} {[%emt 00:00:04]} 4. Nxd4 {[%clk 01:32:16]} {[%emt 00:00:04]} Nc6
{[%clk 01:32:12]} {[%emt 00:00:06]} 5. Nb5 {[%clk 01:32:39]} {[%emt 00:00:07]}
d6 {[%clk 01:32:37]} {[%emt 00:00:05]} 6. c4 {[%clk 01:33:05]} {[%emt
00:00:04]} a6 {[%clk 01:31:16]} {[%emt 00:01:51]} 7. N5c3 {[%clk 01:33:05]}
{[%emt 00:00:30]} Nf6 {[%clk 01:30:23]} {[%emt 00:01:23]} 8. Be2 {[%clk
01:32:55]} {[%emt 00:00:40]} Be7 {[%clk 01:29:42]} {[%emt 00:01:11]} 9. O-O
{[%clk 01:32:54]} {[%emt 00:00:31]} O-O {[%clk 01:30:05]} {[%emt 00:00:07]} 10.
Be3 {[%clk 01:31:19]} {[%emt 00:02:05]} Qc7 {[%clk 01:19:39]} {[%emt 00:10:56]}
11. Nd2 {[%clk 01:29:39]} {[%emt 00:02:10]} Rd8 {[%clk 01:10:21]} {[%emt
00:09:48]} 12. Na4 {[%clk 01:17:22]} {[%emt 00:12:47]} Nd7 {[%clk 01:10:33]}
{[%emt 00:00:18]} 13. Nf3 {[%clk 01:13:15]} {[%emt 00:04:37]} Nc5 {[%clk
01:09:09]} {[%emt 00:01:54]} 14. Nc3 {[%clk 01:06:37]} {[%emt 00:07:08]} Bf6
{[%clk 01:07:35]} {[%emt 00:02:03]} 15. Bg5 {[%clk 00:57:34]} {[%emt 00:09:34]}
Bxg5 {[%clk 01:07:59]} {[%emt 00:00:05]} 16. Nxg5 {[%clk 00:57:58]} {[%emt
00:00:07]} b6 {[%clk 01:05:58]} {[%emt 00:02:31]} 17. Nf3 {[%emt 00:03:51]} Bb7
{[%clk 01:05:40]} {[%emt 00:00:45]} 18. Nd4 {[%clk 00:52:44]} {[%emt 00:02:26]}
Ne7 {[%clk 01:01:07]} {[%emt 00:05:03]} 19. Qc2 {[%clk 00:45:18]} {[%emt
00:07:56]} d5 {[%clk 00:56:21]} {[%emt 00:05:15]} 20. cxd5 {[%clk 00:43:57]}
{[%emt 00:01:52]} exd5 {[%clk 00:56:44]} {[%emt 00:00:07]} 21. exd5 {[%clk
00:44:22]} {[%emt 00:00:05]} Nxd5 {[%clk 00:57:05]} {[%emt 00:00:08]} 22. Nxd5
{[%clk 00:43:57]} {[%emt 00:00:56]} Rxd5 {[%clk 00:57:25]} {[%emt 00:00:09]} 23.
Rad1 {[%clk 00:33:11]} {[%emt 00:11:16]} Qf4 {[%clk 00:57:34]} {[%emt
00:00:21]} 24. Nf3 {[%clk 00:30:25]} {[%emt 00:03:16]} Rh5 {[%clk 00:55:58]}
{[%emt 00:02:07]} 25. Qd2 {[%clk 00:26:05]} {[%emt 00:04:50]} Qf6 {[%clk
00:54:50]} {[%emt 00:01:36]} 26. Qd6 {[%clk 00:24:00]} {[%emt 00:02:36]} Rh6
{[%clk 00:51:30]} {[%emt 00:03:50]} 27. Qxf6 {[%clk 00:24:25]} {[%emt
00:00:05]} Rxf6 {[%clk 00:51:55]} {[%emt 00:00:05]} 28. Rd2 {[%clk 00:21:19]}
{[%emt 00:03:37]} Re8 {[%clk 00:40:56]} {[%emt 00:11:28]} 29. Rfd1 {[%clk
00:19:26]} {[%emt 00:02:23]} Ne6 {[%clk 00:41:12]} {[%emt 00:00:13]} 30. Bc4
{[%clk 00:12:25]} {[%emt 00:07:32]} Rg6 {[%clk 00:24:41]} {[%emt 00:17:00]} 31.
Kf1 {[%clk 00:07:55]} {[%emt 00:05:01]} b5 {[%clk 00:22:00]} {[%emt 00:03:11]}
32. Bd5 {[%clk 00:07:04]} {[%emt 00:01:21]} Bxd5 {[%clk 00:21:09]} {[%emt
00:01:20]} 33. Rxd5 {[%clk 00:07:33]} {[%emt 00:00:02]} 1/2-1/2

[Event "NJSK 2022 Jeugd C"]
[Site "Almelo, Netherlands"]
[Date "2022.05.02"]
[Round "2.2"]
[White "Zhu, Chenwu"]
[Black "Krylov, Philippe"]
[Result "1-0"]
[TimeControl "90min + 30sec/move"]
[WhiteElo "1968"]
[BlackElo "1817"]

1. e4 {[%clk 01:30:57]} {[%emt 00:00:02]} c6 {[%clk 01:31:00]} {[%emt
00:00:01]} 2. d4 {[%clk 01:31:20]} {[%emt 00:00:06]} d5 {[%clk 01:31:29]} 3.
Nc3 {[%clk 01:31:45]} {[%emt 00:00:05]} dxe4 {[%emt 00:00:03]} 4. Nxe4 {[%clk
01:32:09]} {[%emt 00:00:06]} Bf5 {[%clk 01:32:26]} {[%emt 00:00:02]} 5. Ng3
{[%clk 01:32:32]} {[%emt 00:00:06]} Bg6 {[%clk 01:32:55]} {[%emt 00:00:02]} 6.
h4 {[%clk 01:33:00]} {[%emt 00:00:02]} h6 {[%clk 01:33:23]} {[%emt 00:00:02]} 7.
h5 {[%clk 01:33:19]} {[%emt 00:00:10]} Bh7 {[%clk 01:33:51]} {[%emt 00:00:03]}
8. Nf3 {[%clk 01:33:45]} {[%emt 00:00:04]} Nd7 {[%clk 01:34:19]} {[%emt
00:00:03]} 9. Bd3 {[%clk 01:34:10]} {[%emt 00:00:05]} Bxd3 {[%clk 01:34:45]}
{[%emt 00:00:04]} 10. Qxd3 {[%clk 01:34:39]} e6 {[%clk 01:35:10]} {[%emt
00:00:06]} 11. Be3 {[%clk 01:34:41]} {[%emt 00:00:28]} Qa5+ {[%clk 01:34:22]}
{[%emt 00:01:18]} 12. Bd2 {[%clk 01:34:05]} {[%emt 00:01:04]} Bb4 {[%clk
01:34:45]} {[%emt 00:00:08]} 13. a3 {[%clk 01:31:25]} {[%emt 00:03:11]} Bxd2+
{[%clk 01:35:09]} {[%emt 00:00:05]} 14. Nxd2 {[%clk 01:31:34]} {[%emt
00:00:20]} Ngf6 {[%clk 01:35:08]} {[%emt 00:00:33]} 15. O-O-O {[%clk 01:31:49]}
{[%emt 00:00:15]} c5 {[%clk 01:33:11]} {[%emt 00:02:27]} 16. Nb3 {[%clk
01:31:12]} {[%emt 00:01:06]} Qc7 {[%clk 01:32:47]} {[%emt 00:00:54]} 17. dxc5
{[%clk 01:29:26]} {[%emt 00:02:15]} Nxc5 {[%clk 01:33:00]} {[%emt 00:00:18]} 18.
Qb5+ {[%clk 01:28:34]} {[%emt 00:01:23]} Ncd7 {[%clk 01:32:17]} {[%emt
00:01:13]} 19. Rd2 {[%clk 01:21:39]} {[%emt 00:07:25]} O-O {[%clk 01:28:38]}
{[%emt 00:01:27]} 20. Qe2 {[%clk 01:19:35]} {[%emt 00:05:15]} Rfd8 {[%clk
01:27:43]} {[%emt 00:01:26]} 21. Rhd1 {[%clk 01:17:05]} {[%emt 00:02:59]} Nb6
{[%clk 01:25:32]} {[%emt 00:02:42]} 22. Ne4 {[%clk 01:15:11]} {[%emt 00:02:23]}
Nxe4 {[%clk 01:23:14]} {[%emt 00:02:48]} 23. Qxe4 {[%clk 01:15:12]} {[%emt
00:00:29]} Rxd2 {[%clk 01:22:13]} {[%emt 00:01:32]} 24. Nxd2 {[%clk 01:13:54]}
{[%emt 00:01:47]} Rd8 {[%clk 01:21:54]} {[%emt 00:00:48]} 25. g4 {[%clk
01:12:58]} {[%emt 00:01:26]} Qd7 {[%clk 01:18:00]} {[%emt 00:04:24]} 26. f4
{[%clk 01:10:34]} {[%emt 00:02:53]} Qd5 {[%clk 01:15:21]} {[%emt 00:03:10]} 27.
Qe2 {[%clk 01:06:35]} {[%emt 00:04:29]} Na4 {[%clk 01:07:23]} {[%emt 00:08:28]}
28. Nc4 {[%clk 01:02:21]} {[%emt 00:04:44]} Qxd1+ {[%clk 01:07:42]} {[%emt
00:00:11]} 29. Qxd1 {[%clk 01:02:45]} {[%emt 00:00:06]} Rxd1+ {[%emt 00:00:06]}
30. Kxd1 {[%clk 01:03:09]} {[%emt 00:00:04]} b5 {[%clk 01:04:00]} {[%emt
00:04:39]} 31. Nd6 {[%clk 00:59:56]} {[%emt 00:03:42]} a6 {[%clk 00:58:48]}
{[%emt 00:05:42]} 32. b3 {[%clk 00:58:57]} {[%emt 00:01:29]} Nc3+ {[%clk
00:58:21]} {[%emt 00:00:57]} 33. Ke1 {[%clk 00:54:19]} {[%emt 00:05:08]} Kf8
{[%clk 00:57:54]} {[%emt 00:00:57]} 34. Kf2 {[%clk 00:51:01]} {[%emt 00:03:48]}
Ke7 {[%clk 00:55:36]} {[%emt 00:02:49]} 35. Nb7 {[%clk 00:51:02]} {[%emt
00:00:28]} f6 {[%clk 00:54:39]} {[%emt 00:01:26]} 36. Ke3 {[%clk 00:49:03]}
{[%emt 00:02:29]} Nd5+ {[%clk 00:39:20]} {[%emt 00:15:51]} 37. Ke4 {[%clk
00:45:42]} {[%emt 00:03:50]} Nc7 {[%clk 00:38:28]} {[%emt 00:01:22]} 38. c4
{[%clk 00:44:55]} {[%emt 00:01:17]} Kd7 {[%clk 00:37:01]} {[%emt 00:01:57]} 39.
f5 {[%clk 00:32:01]} {[%emt 00:13:24]} e5 {[%clk 00:36:12]} {[%emt 00:01:19]}
40. cxb5 {[%clk 00:30:27]} {[%emt 00:02:04]} axb5 {[%clk 00:33:10]} {[%emt
00:03:32]} 41. Nc5+ {[%clk 00:26:33]} {[%emt 00:04:24]} Kd6 {[%clk 00:31:09]}
{[%emt 00:02:30]} 42. Nd3 {[%clk 00:23:27]} {[%emt 00:03:36]} Na6 {[%clk
00:30:40]} {[%emt 00:01:00]} 43. b4 {[%clk 00:19:29]} {[%emt 00:04:28]} Nc7
{[%clk 00:29:14]} {[%emt 00:01:56]} 44. Nc5 {[%clk 00:18:52]} {[%emt 00:01:06]}
Kc6 {[%clk 00:29:17]} {[%emt 00:00:28]} 45. Nd3 {[%clk 00:18:14]} {[%emt
00:01:08]} Nd5 {[%clk 00:28:36]} {[%emt 00:01:12]} 46. Nc5 {[%clk 00:18:25]}
{[%emt 00:00:18]} Nf4 {[%clk 00:26:50]} {[%emt 00:02:15]} 47. a4 {[%clk
00:16:47]} {[%emt 00:02:08]} bxa4 {[%clk 00:26:17]} {[%emt 00:01:04]} 48. Nxa4
{[%clk 00:17:13]} {[%emt 00:00:04]} Nd5 {[%clk 00:20:59]} {[%emt 00:05:52]} 49.
Nc5 {[%clk 00:16:49]} {[%emt 00:00:51]} Nxb4 {[%clk 00:20:59]} {[%emt
00:00:29]} 50. Ne6 {[%clk 00:17:09]} {[%emt 00:00:10]} Nd5 {[%clk 00:20:49]}
{[%emt 00:00:41]} 51. Nxg7 {[%clk 00:17:17]} {[%emt 00:00:21]} Nc7 {[%clk
00:21:02]} {[%emt 00:00:19]} 52. g5 {[%clk 00:16:56]} {[%emt 00:00:50]} fxg5
{[%clk 00:21:02]} {[%emt 00:00:29]} 53. Kxe5 {[%clk 00:16:58]} {[%emt
00:00:28]} Kd7 {[%clk 00:20:48]} {[%emt 00:00:45]} 54. f6 {[%clk 00:17:07]}
{[%emt 00:00:21]} Kd8 {[%clk 00:20:15]} {[%emt 00:01:03]} 55. Nf5 {[%clk
00:15:32]} {[%emt 00:02:04]} Ke8 {[%clk 00:19:01]} {[%emt 00:01:44]} 56. Nxh6
{[%clk 00:15:50]} {[%emt 00:00:12]} Kf8 {[%clk 00:16:32]} {[%emt 00:03:00]} 57.
Kf5 {[%clk 00:16:10]} {[%emt 00:00:09]} Ne8 {[%clk 00:15:40]} {[%emt 00:01:23]}
58. Kxg5 {[%clk 00:16:01]} {[%emt 00:00:39]} Ng7 {[%clk 00:13:53]} {[%emt
00:02:17]} 59. fxg7+ {[%clk 00:16:16]} {[%emt 00:00:15]} Kxg7 {[%clk 00:14:18]}
{[%emt 00:00:05]} 60. Nf5+ {[%clk 00:16:39]} {[%emt 00:00:07]} Kh8 {[%clk
00:14:43]} {[%emt 00:00:05]} 61. Kg6 {[%clk 00:17:02]} {[%emt 00:00:06]} Kg8
{[%clk 00:15:08]} {[%emt 00:00:05]} 62. h6 {[%clk 00:17:12]} {[%emt 00:00:21]}
Kh8 {[%clk 00:15:34]} {[%emt 00:00:04]} 63. Nd6 {[%clk 00:17:37]} {[%emt
00:00:05]} Kg8 {[%clk 00:15:41]} {[%emt 00:00:23]} 64. h7+ {[%clk 00:18:01]}
{[%emt 00:00:05]} 1-0

[Event "NJSK 2022 Jeugd C"]
[Site "Almelo, Netherlands"]
[Date "2022.05.02"]
[Round "2.3"]
[White "Arnold, Rhys"]
[Black "Madularea, David"]
[Result "1-0"]
[TimeControl "90min + 30sec/move"]
[WhiteElo "1846"]
[BlackElo "1774"]

1. e4 {[%clk 01:30:58]} {[%emt 00:00:02]} c5 {[%clk 01:30:51]} {[%emt
00:00:10]} 2. c4 {[%clk 01:31:23]} {[%emt 00:00:05]} d6 {[%clk 01:30:46]}
{[%emt 00:00:34]} 3. Nc3 {[%clk 01:31:47]} {[%emt 00:00:06]} g6 {[%clk
01:30:12]} {[%emt 00:01:04]} 4. Nge2 {[%clk 01:32:07]} {[%emt 00:00:10]} Bg7
{[%clk 01:30:20]} {[%emt 00:00:22]} 5. d4 {[%clk 01:29:59]} {[%emt 00:02:38]}
cxd4 {[%clk 01:28:41]} {[%emt 00:02:10]} 6. Nxd4 {[%clk 01:30:23]} {[%emt
00:00:06]} Nc6 {[%clk 01:27:53]} {[%emt 00:01:17]} 7. Be3 {[%clk 01:28:36]}
{[%emt 00:02:18]} Nf6 {[%clk 01:27:00]} {[%emt 00:01:22]} 8. Be2 {[%clk
01:28:19]} {[%emt 00:00:47]} O-O {[%clk 01:25:13]} {[%emt 00:02:17]} 9. O-O
{[%clk 01:28:41]} {[%emt 00:00:08]} Bd7 {[%clk 01:23:40]} {[%emt 00:02:02]} 10.
Rc1 {[%clk 01:25:01]} {[%emt 00:04:11]} a6 {[%clk 01:21:53]} {[%emt 00:02:18]}
11. h3 {[%clk 01:19:43]} {[%emt 00:05:48]} Nxd4 {[%clk 00:57:40]} {[%emt
00:24:43]} 12. Bxd4 {[%clk 01:19:30]} {[%emt 00:00:42]} b5 {[%clk 00:57:21]}
{[%emt 00:00:50]} 13. cxb5 {[%clk 01:17:39]} {[%emt 00:02:21]} axb5 {[%clk
00:57:20]} {[%emt 00:00:30]} 14. a3 {[%clk 01:17:51]} {[%emt 00:00:18]} Bc6
{[%clk 00:49:49]} {[%emt 00:08:01]} 15. Bxb5 {[%clk 01:09:10]} {[%emt
00:09:11]} Bxb5 {[%clk 00:40:47]} {[%emt 00:09:32]} 16. Nxb5 {[%clk 01:08:53]}
{[%emt 00:00:47]} e5 {[%clk 00:32:39]} {[%emt 00:08:38]} 17. Be3 {[%clk
01:08:29]} {[%emt 00:00:54]} Nxe4 {[%clk 00:31:32]} {[%emt 00:01:37]} 18. Qd5
{[%clk 01:07:05]} {[%emt 00:01:54]} Ra5 {[%clk 00:29:11]} {[%emt 00:02:51]} 19.
b4 {[%clk 01:06:20]} {[%emt 00:01:15]} Nf6 {[%clk 00:27:41]} {[%emt 00:02:00]}
20. Qc6 {[%clk 01:04:04]} {[%emt 00:02:47]} Rxb5 {[%clk 00:23:45]} {[%emt
00:04:26]} 21. Qxb5 {[%clk 01:04:24]} {[%emt 00:00:10]} Qa8 {[%clk 00:23:48]}
{[%emt 00:00:27]} 22. Qc6 {[%clk 01:00:00]} {[%emt 00:04:53]} Qxa3 {[%clk
00:22:59]} {[%emt 00:01:19]} 23. b5 {[%clk 01:00:24]} {[%emt 00:00:07]} d5
{[%clk 00:19:37]} {[%emt 00:03:51]} 24. Bc5 {[%clk 01:00:46]} {[%emt 00:00:09]}
1-0